[Event "Titled Tuesday Blitz April 11 Early 2023"]
[White "Martic, Ivan"]
[Black "Sailer, Mike"]
[WhiteFideId "929301"]
[BlackFideId "2012901"]
[WhiteElo "2360"]
[BlackElo "2109"]
[Result "1-0"]
[Round "01"]
[TimeControl "180+2"]
[Date "2023.04.11"]
[WhiteClock "0:00:09"]
[BlackClock "0:00:04"]

1. d4 {[%clk 0:03:00]}  d5 {[%clk 0:02:54]} 2. Nf3 {[%clk 0:02:59]}  Nf6 {[%clk 0:02:50]} 3. c4 {[%clk 0:02:59]}  Bf5 {[%clk 0:02:45]} 4. cxd5 {[%clk 0:02:58]}  Bxb1 {[%clk 0:02:40]} 5. Qa4+ {[%clk 0:02:58]}  Qd7 {[%clk 0:02:38]} 6. Qxd7+ {[%clk 0:02:57]}  Nbxd7 {[%clk 0:02:38]} 7. Rxb1 {[%clk 0:02:57]}  Nb6 {[%clk 0:02:39]} 8. e3 {[%clk 0:02:49]}  Nbxd5 {[%clk 0:02:38]} 9. a3 {[%clk 0:02:48]}  e6 {[%clk 0:02:38]} 10. Be2 {[%clk 0:02:37]}  Be7 {[%clk 0:02:38]} 11. O-O {[%clk 0:02:36]}  h6 {[%clk 0:02:27]} 12. Ne5 {[%clk 0:02:36]}  Nd7 {[%clk 0:02:22]} 13. Nxd7 {[%clk 0:02:31]}  Kxd7 {[%clk 0:02:23]} 14. Bd2 {[%clk 0:02:31]}  Rac8 {[%clk 0:02:12]} 15. e4 {[%clk 0:02:28]}  Nb6 {[%clk 0:02:05]} 16. d5 {[%clk 0:02:23]}  h5 {[%clk 0:01:44]} 17. dxe6+ {[%clk 0:02:21]}  Kxe6 {[%clk 0:01:44]} 18. Rfe1 {[%clk 0:02:08]}  g6 {[%clk 0:01:32]} 19. Rbc1 {[%clk 0:01:57]}  Rhd8 {[%clk 0:01:30]} 20. Bc3 {[%clk 0:01:54]}  Bf6 {[%clk 0:01:11]} 21. e5 {[%clk 0:01:52]}  Bg5 {[%clk 0:01:12]} 22. Rcd1 {[%clk 0:01:49]}  Nd5 {[%clk 0:01:03]} 23. Bc4 {[%clk 0:01:46]}  c6 {[%clk 0:01:04]} 24. g3 {[%clk 0:01:42]}  Ke7 {[%clk 0:00:58]} 25. Bd4 {[%clk 0:01:38]}  b6 {[%clk 0:00:54]} 26. f4 {[%clk 0:01:35]}  Bh6 {[%clk 0:00:54]} 27. Bf2 {[%clk 0:01:31]}  Ke8 {[%clk 0:00:53]} 28. Kg2 {[%clk 0:01:21]}  Bf8 {[%clk 0:00:53]} 29. e6 {[%clk 0:01:17]}  Bc5 {[%clk 0:00:33]} 30. exf7+ {[%clk 0:01:12]}  Kxf7 {[%clk 0:00:34]} 31. Bxc5 {[%clk 0:01:12]}  bxc5 {[%clk 0:00:34]} 32. Re5 {[%clk 0:01:02]}  Rb8 {[%clk 0:00:26]} 33. b3 {[%clk 0:01:02]}  Kf6 {[%clk 0:00:26]} 34. Rde1 {[%clk 0:01:00]}  Rd6 {[%clk 0:00:26]} 35. h3 {[%clk 0:00:55]}  Nb6 {[%clk 0:00:23]} 36. Re6+ {[%clk 0:00:54]}  Rxe6 {[%clk 0:00:24]} 37. Rxe6+ {[%clk 0:00:55]}  Kf5 {[%clk 0:00:24]} 38. Re5+ {[%clk 0:00:41]}  Kf6 {[%clk 0:00:25]} 39. Rxc5 {[%clk 0:00:41]}  Nxc4 {[%clk 0:00:24]} 40. Rxc6+ {[%clk 0:00:41]}  Kf5 {[%clk 0:00:22]} 41. bxc4 {[%clk 0:00:36]}  Rb2+ {[%clk 0:00:22]} 42. Kf1 {[%clk 0:00:35]}  Ke4 {[%clk 0:00:22]} 43. Rxg6 {[%clk 0:00:32]}  Kf3 {[%clk 0:00:20]} 44. Ke1 {[%clk 0:00:32]}  Rc2 {[%clk 0:00:15]} 45. f5 {[%clk 0:00:19]}  Rxc4 {[%clk 0:00:15]} 46. f6 {[%clk 0:00:20]}  Ke3 {[%clk 0:00:09]} 47. Kd1 {[%clk 0:00:20]}  Rd4+ {[%clk 0:00:08]} 48. Kc2 {[%clk 0:00:18]}  Rd2+ {[%clk 0:00:07]} 49. Kc3 {[%clk 0:00:17]}  Rf2 {[%clk 0:00:08]} 50. Rh6 {[%clk 0:00:12]}  Ke4 {[%clk 0:00:06]} 51. Rxh5 {[%clk 0:00:10]}  Rf3+ {[%clk 0:00:05]} 52. Kb4 {[%clk 0:00:09]}  Rxg3 {[%clk 0:00:05]} 53. f7 {[%clk 0:00:09]}  Rf3 {[%clk 0:00:06]} 54. Rh7 {[%clk 0:00:09]}  Ke5 {[%clk 0:00:05]} 55. a4 {[%clk 0:00:09]}  Ke6 {[%clk 0:00:04]} 56. Kb5 {[%clk 0:00:09]}  Rf5+ {[%clk 0:00:02]} 57. Ka6 {[%clk 0:00:09]}  Rf4 {[%clk 0:00:03]} 58. a5 {[%clk 0:00:10]}  Rf5 {[%clk 0:00:04]} 59. h4 {[%clk 0:00:09]}  Rf4 {[%clk 0:00:04]} 60. Kxa7 {[%clk 0:00:08]}  Ke7 {[%clk 0:00:04]} 61. a6 {[%clk 0:00:08]}  Kf8 {[%clk 0:00:04]} 62. h5 {[%clk 0:00:09]} 1-0


[Site "https://www.chess.com"]

[Event "Titled Tuesday Blitz April 11 Early 2023"]
[White "Necula, Iulian"]
[Black "Sharapov, Evgeny"]
[WhiteFideId "1232380"]
[BlackFideId "14103133"]
[WhiteElo "1790"]
[BlackElo "2367"]
[Result "0-1"]
[Round "01"]
[TimeControl "180+2"]
[Date "2023.04.11"]
[WhiteClock "0:00:02"]
[BlackClock "0:01:33"]

1. d4 {[%clk 0:03:00]}  Nf6 {[%clk 0:02:57]} 2. Nc3 {[%clk 0:03:00]}  d5 {[%clk 0:02:55]} 3. Bf4 {[%clk 0:03:00]}  c6 {[%clk 0:02:55]} 4. e3 {[%clk 0:03:00]}  Qb6 {[%clk 0:02:55]} 5. a3 {[%clk 0:02:58]}  g6 {[%clk 0:02:51]} 6. h4 {[%clk 0:02:57]}  h5 {[%clk 0:02:50]} 7. Nf3 {[%clk 0:02:55]}  Bg7 {[%clk 0:02:50]} 8. Ne5 {[%clk 0:02:52]}  Bf5 {[%clk 0:02:48]} 9. Bd3 {[%clk 0:02:51]}  Bxd3 {[%clk 0:02:47]} 10. Nxd3 {[%clk 0:02:47]}  Nbd7 {[%clk 0:02:46]} 11. O-O {[%clk 0:02:46]}  O-O {[%clk 0:02:45]} 12. b4 {[%clk 0:02:28]}  Ne4 {[%clk 0:02:45]} 13. Nxe4 {[%clk 0:02:27]}  dxe4 {[%clk 0:02:45]} 14. Nc5 {[%clk 0:02:26]}  Nxc5 {[%clk 0:02:45]} 15. bxc5 {[%clk 0:02:26]}  Qa6 {[%clk 0:02:41]} 16. g4 {[%clk 0:02:11]}  hxg4 {[%clk 0:02:40]} 17. Qxg4 {[%clk 0:02:10]}  b6 {[%clk 0:02:35]} 18. cxb6 {[%clk 0:02:08]}  axb6 {[%clk 0:02:35]} 19. h5 {[%clk 0:02:01]}  Qc8 {[%clk 0:02:35]} 20. Qxc8 {[%clk 0:01:57]}  Rfxc8 {[%clk 0:02:34]} 21. hxg6 {[%clk 0:01:58]}  fxg6 {[%clk 0:02:34]} 22. Rfb1 {[%clk 0:01:54]}  b5 {[%clk 0:02:34]} 23. Rb3 {[%clk 0:01:48]}  Ra4 {[%clk 0:02:33]} 24. c3 {[%clk 0:01:44]}  Rca8 {[%clk 0:02:31]} 25. Bg5 {[%clk 0:01:39]}  Kf7 {[%clk 0:02:30]} 26. Kg2 {[%clk 0:01:32]}  e6 {[%clk 0:02:30]} 27. f3 {[%clk 0:01:28]}  exf3+ {[%clk 0:02:30]} 28. Kxf3 {[%clk 0:01:28]}  Bf8 {[%clk 0:02:30]} 29. c4 {[%clk 0:01:23]}  Rxa3 {[%clk 0:02:26]} 30. Raxa3 {[%clk 0:01:23]}  Rxa3 {[%clk 0:02:26]} 31. Rxa3 {[%clk 0:01:17]}  Bxa3 {[%clk 0:02:25]} 32. cxb5 {[%clk 0:01:17]}  cxb5 {[%clk 0:02:25]} 33. e4 {[%clk 0:01:18]}  Bb2 {[%clk 0:02:22]} 34. d5 {[%clk 0:01:17]}  exd5 {[%clk 0:02:16]} 35. exd5 {[%clk 0:01:17]}  Ke8 {[%clk 0:02:15]} 36. Bd2 {[%clk 0:01:17]}  Kd7 {[%clk 0:02:14]} 37. Bb4 {[%clk 0:01:16]}  Be5 {[%clk 0:02:13]} 38. Ke4 {[%clk 0:01:15]}  Bd6 {[%clk 0:02:13]} 39. Bc3 {[%clk 0:01:07]}  Ke7 {[%clk 0:02:12]} 40. Bb2 {[%clk 0:00:56]}  Kf7 {[%clk 0:02:11]} 41. Bc3 {[%clk 0:00:54]}  Kg8 {[%clk 0:02:11]} 42. Bb2 {[%clk 0:00:54]}  Kf7 {[%clk 0:02:10]} 43. Bc3 {[%clk 0:00:54]}  b4 {[%clk 0:02:10]} 44. Bb2 {[%clk 0:00:54]}  Be7 {[%clk 0:02:07]} 45. Kd3 {[%clk 0:00:51]}  Bf6 {[%clk 0:02:04]} 46. Bc1 {[%clk 0:00:49]}  b3 {[%clk 0:02:03]} 47. Ba3 {[%clk 0:00:32]}  Ke8 {[%clk 0:02:00]} 48. Ke4 {[%clk 0:00:28]}  Kd7 {[%clk 0:02:00]} 49. Kd3 {[%clk 0:00:27]}  Bg7 {[%clk 0:01:56]} 50. Bc5 {[%clk 0:00:17]}  Ke8 {[%clk 0:01:50]} 51. Ba3 {[%clk 0:00:16]}  Kf7 {[%clk 0:01:49]} 52. Bc5 {[%clk 0:00:16]}  g5 {[%clk 0:01:48]} 53. Be3 {[%clk 0:00:12]}  g4 {[%clk 0:01:47]} 54. Bf4 {[%clk 0:00:12]}  Kg6 {[%clk 0:01:43]} 55. d6 {[%clk 0:00:12]}  Kf7 {[%clk 0:01:43]} 56. Bg3 {[%clk 0:00:10]}  Ke6 {[%clk 0:01:43]} 57. Bf4 {[%clk 0:00:10]}  Bf8 {[%clk 0:01:40]} 58. Bg3 {[%clk 0:00:10]}  Bxd6 {[%clk 0:01:40]} 59. Be1 {[%clk 0:00:10]}  Be5 {[%clk 0:01:40]} 60. Bf2 {[%clk 0:00:09]}  Kf5 {[%clk 0:01:37]} 61. Bg1 {[%clk 0:00:09]}  g3 {[%clk 0:01:36]} 62. Kd2 {[%clk 0:00:06]}  Ke4 {[%clk 0:01:35]} 63. Kd1 {[%clk 0:00:04]}  Kd3 {[%clk 0:01:34]} 64. Bc5 {[%clk 0:00:02]}  b2 {[%clk 0:01:33]} 0-1


[Site "https://www.chess.com"]

[Event "Titled Tuesday Blitz April 11 Early 2023"]
[White "Ljukin, Sergei"]
[Black "Winkels, Marcel"]
[WhiteFideId "14102200"]
[BlackFideId "1003887"]
[WhiteElo "2312"]
[BlackElo "1900"]
[Result "1-0"]
[Round "01"]
[TimeControl "180+2"]
[Date "2023.04.11"]
[WhiteClock "0:00:43"]
[BlackClock "0:00:01"]

1. e4 {[%clk 0:02:50]}  c5 {[%clk 0:03:00]} 2. Nf3 {[%clk 0:02:50]}  d6 {[%clk 0:03:00]} 3. d4 {[%clk 0:02:50]}  cxd4 {[%clk 0:03:01]} 4. Nxd4 {[%clk 0:02:51]}  Nf6 {[%clk 0:03:01]} 5. Nc3 {[%clk 0:02:51]}  a6 {[%clk 0:03:01]} 6. Bg5 {[%clk 0:02:52]}  e6 {[%clk 0:03:00]} 7. f4 {[%clk 0:02:52]}  Be7 {[%clk 0:02:59]} 8. Qf3 {[%clk 0:02:52]}  Nbd7 {[%clk 0:02:57]} 9. O-O-O {[%clk 0:02:53]}  Qc7 {[%clk 0:02:57]} 10. g4 {[%clk 0:02:53]}  h6 {[%clk 0:02:56]} 11. Bxf6 {[%clk 0:02:53]}  Bxf6 {[%clk 0:02:56]} 12. h4 {[%clk 0:02:53]}  Nb6 {[%clk 0:02:22]} 13. g5 {[%clk 0:02:53]}  Bxd4 {[%clk 0:02:17]} 14. Rxd4 {[%clk 0:02:51]}  Qc5 {[%clk 0:02:18]} 15. Rd2 {[%clk 0:02:31]}  Bd7 {[%clk 0:02:12]} 16. Be2 {[%clk 0:02:26]}  O-O-O {[%clk 0:02:07]} 17. Rhd1 {[%clk 0:02:25]}  Bc6 {[%clk 0:01:42]} 18. Qg4 {[%clk 0:02:24]}  hxg5 {[%clk 0:01:33]} 19. hxg5 {[%clk 0:02:24]}  g6 {[%clk 0:01:22]} 20. Bd3 {[%clk 0:02:13]}  Nc4 {[%clk 0:01:04]} 21. Bxc4 {[%clk 0:02:12]}  Qxc4 {[%clk 0:01:04]} 22. Rd4 {[%clk 0:02:12]}  Qc5 {[%clk 0:01:02]} 23. Qe2 {[%clk 0:02:12]}  e5 {[%clk 0:00:45]} 24. Rc4 {[%clk 0:01:57]}  Qa5 {[%clk 0:00:37]} 25. a3 {[%clk 0:01:20]}  exf4 {[%clk 0:00:32]} 26. Nd5 {[%clk 0:01:20]}  Kb8 {[%clk 0:00:26]} 27. Qf2 {[%clk 0:01:05]}  Bxd5 {[%clk 0:00:23]} 28. exd5 {[%clk 0:01:05]}  Rc8 {[%clk 0:00:19]} 29. Rxf4 {[%clk 0:01:02]}  Qc5 {[%clk 0:00:16]} 30. Qxc5 {[%clk 0:01:00]}  Rxc5 {[%clk 0:00:17]} 31. Rxf7 {[%clk 0:01:00]}  Rh2 {[%clk 0:00:16]} 32. c3 {[%clk 0:00:56]}  Rb5 {[%clk 0:00:13]} 33. b4 {[%clk 0:00:54]}  Rg2 {[%clk 0:00:12]} 34. Rf6 {[%clk 0:00:49]}  Rxg5 {[%clk 0:00:11]} 35. Rxd6 {[%clk 0:00:50]}  Kc7 {[%clk 0:00:11]} 36. Rf6 {[%clk 0:00:49]}  Rbxd5 {[%clk 0:00:10]} 37. Rxd5 {[%clk 0:00:49]}  Rxd5 {[%clk 0:00:10]} 38. Rxg6 {[%clk 0:00:49]}  Rd3 {[%clk 0:00:10]} 39. Kc2 {[%clk 0:00:49]}  Rf3 {[%clk 0:00:07]} 40. a4 {[%clk 0:00:49]}  Rf2+ {[%clk 0:00:07]} 41. Kb3 {[%clk 0:00:49]}  Rf3 {[%clk 0:00:07]} 42. Rg7+ {[%clk 0:00:47]}  Kb6 {[%clk 0:00:05]} 43. Rg6+ {[%clk 0:00:46]}  Kc7 {[%clk 0:00:04]} 44. b5 {[%clk 0:00:45]}  axb5 {[%clk 0:00:04]} 45. axb5 {[%clk 0:00:45]}  Rf4 {[%clk 0:00:02]} 46. b6+ {[%clk 0:00:43]}  Kc8 {[%clk 0:00:01]} 47. c4 {[%clk 0:00:43]} 1-0


[Site "https://www.chess.com"]

[Event "Titled Tuesday Blitz April 11 Early 2023"]
[White "Hartikainen, Jarmo"]
[Black "Demin, Vladimir"]
[WhiteFideId "503134"]
[BlackFideId "4167457"]
[WhiteElo "2068"]
[BlackElo "2550"]
[Result "0-1"]
[Round "01"]
[TimeControl "180+2"]
[Date "2023.04.11"]
[WhiteClock "0:01:41"]
[BlackClock "0:02:11"]

1. e4 {[%clk 0:02:59]}  e5 {[%clk 0:02:59]} 2. Nf3 {[%clk 0:02:58]}  Nc6 {[%clk 0:02:55]} 3. Bc4 {[%clk 0:02:58]}  Bc5 {[%clk 0:02:54]} 4. c3 {[%clk 0:02:58]}  Nf6 {[%clk 0:02:54]} 5. d4 {[%clk 0:02:57]}  exd4 {[%clk 0:02:54]} 6. b4 {[%clk 0:02:57]}  Bb6 {[%clk 0:02:54]} 7. e5 {[%clk 0:02:56]}  d5 {[%clk 0:02:54]} 8. exf6 {[%clk 0:02:56]}  dxc4 {[%clk 0:02:54]} 9. Qe2+ {[%clk 0:02:55]}  Be6 {[%clk 0:02:52]} 10. fxg7 {[%clk 0:02:55]}  Rg8 {[%clk 0:02:52]} 11. Bg5 {[%clk 0:02:54]}  Qd5 {[%clk 0:02:39]} 12. b5 {[%clk 0:02:11]}  d3 {[%clk 0:02:31]} 13. Qd2 {[%clk 0:02:10]}  Ne5 {[%clk 0:02:25]} 14. Bf6 {[%clk 0:01:41]}  Nxf3+ {[%clk 0:02:14]} 15. gxf3 {[%clk 0:01:42]}  Qxf3 {[%clk 0:02:12]} 16. Rg1 {[%clk 0:01:41]}  Qxf6 {[%clk 0:02:11]} 0-1


[Site "https://www.chess.com"]

[Event "Titled Tuesday Blitz April 11 Early 2023"]
[White "Aggelis, Nikolaos"]
[Black "Sanchez, Robert"]
[WhiteFideId "4213220"]
[BlackFideId "2034360"]
[WhiteElo "2189"]
[BlackElo "2007"]
[Result "1-0"]
[Round "01"]
[TimeControl "180+2"]
[Date "2023.04.11"]
[WhiteClock "0:01:10"]
[BlackClock "0:00:48"]

1. e4 {[%clk 0:02:53]}  e6 {[%clk 0:02:58]} 2. d4 {[%clk 0:02:52]}  d5 {[%clk 0:02:58]} 3. exd5 {[%clk 0:02:53]}  exd5 {[%clk 0:02:59]} 4. Nf3 {[%clk 0:02:53]}  Nf6 {[%clk 0:02:59]} 5. g3 {[%clk 0:02:53]}  Bd6 {[%clk 0:02:57]} 6. Bg2 {[%clk 0:02:54]}  O-O {[%clk 0:02:57]} 7. O-O {[%clk 0:02:55]}  h6 {[%clk 0:02:57]} 8. Bd2 {[%clk 0:02:43]}  c6 {[%clk 0:02:57]} 9. a3 {[%clk 0:02:43]}  Bf5 {[%clk 0:02:57]} 10. Bb4 {[%clk 0:02:43]}  Na6 {[%clk 0:02:51]} 11. Bxd6 {[%clk 0:02:42]}  Qxd6 {[%clk 0:02:52]} 12. Nbd2 {[%clk 0:02:43]}  Rfe8 {[%clk 0:02:49]} 13. c3 {[%clk 0:02:40]}  Bd3 {[%clk 0:02:46]} 14. Re1 {[%clk 0:02:38]}  Rxe1+ {[%clk 0:02:40]} 15. Nxe1 {[%clk 0:02:38]}  Bg6 {[%clk 0:02:37]} 16. Ndf3 {[%clk 0:02:37]}  Re8 {[%clk 0:02:34]} 17. Ne5 {[%clk 0:02:37]}  Nd7 {[%clk 0:02:33]} 18. N1d3 {[%clk 0:02:37]}  Bf5 {[%clk 0:02:28]} 19. Qb3 {[%clk 0:02:35]}  b5 {[%clk 0:02:16]} 20. a4 {[%clk 0:02:27]}  Nc7 {[%clk 0:02:07]} 21. axb5 {[%clk 0:02:20]}  Nxb5 {[%clk 0:02:07]} 22. Nxd7 {[%clk 0:02:15]}  Bxd3 {[%clk 0:01:57]} 23. Nc5 {[%clk 0:02:15]}  Bc4 {[%clk 0:01:44]} 24. Qd1 {[%clk 0:01:59]}  Re2 {[%clk 0:01:43]} 25. Qc1 {[%clk 0:01:43]}  Qf6 {[%clk 0:01:33]} 26. f4 {[%clk 0:01:39]}  Nxd4 {[%clk 0:01:08]} 27. cxd4 {[%clk 0:01:19]}  Qxd4+ {[%clk 0:01:05]} 28. Kh1 {[%clk 0:01:17]}  Qxc5 {[%clk 0:00:58]} 29. Bf1 {[%clk 0:01:10]}  Qf2 {[%clk 0:00:48]} 1-0


[Site "https://www.chess.com"]

[Event "Titled Tuesday Blitz April 11 Early 2023"]
[White "Odegov, Artem"]
[Black "NtcPou"]
[WhiteFideId "34183644"]
[WhiteElo "2300"]
[BlackElo "1977"]
[Result "1-0"]
[Round "01"]
[TimeControl "180+2"]
[Date "2023.04.11"]
[WhiteClock "0:02:02"]
[BlackClock "0:01:14"]

1. d4 {[%clk 0:02:59]}  d5 {[%clk 0:02:59]} 2. c4 {[%clk 0:03:00]}  c6 {[%clk 0:02:59]} 3. Nc3 {[%clk 0:03:00]}  Nf6 {[%clk 0:02:58]} 4. Nf3 {[%clk 0:03:01]}  a6 {[%clk 0:02:59]} 5. cxd5 {[%clk 0:03:00]}  cxd5 {[%clk 0:02:58]} 6. Bf4 {[%clk 0:03:01]}  Nc6 {[%clk 0:02:58]} 7. e3 {[%clk 0:03:02]}  Ne4 {[%clk 0:02:57]} 8. Be2 {[%clk 0:03:02]}  Nxc3 {[%clk 0:02:55]} 9. bxc3 {[%clk 0:03:03]}  g6 {[%clk 0:02:56]} 10. O-O {[%clk 0:03:03]}  Bg7 {[%clk 0:02:56]} 11. c4 {[%clk 0:03:03]}  dxc4 {[%clk 0:02:56]} 12. Bxc4 {[%clk 0:03:04]}  O-O {[%clk 0:02:56]} 13. Rb1 {[%clk 0:03:04]}  b5 {[%clk 0:02:54]} 14. Bd3 {[%clk 0:03:03]}  Bg4 {[%clk 0:02:53]} 15. h3 {[%clk 0:03:02]}  Be6 {[%clk 0:02:50]} 16. Qd2 {[%clk 0:03:02]}  Rc8 {[%clk 0:02:48]} 17. Rfc1 {[%clk 0:03:02]}  Na5 {[%clk 0:02:47]} 18. Rxc8 {[%clk 0:03:02]}  Bxc8 {[%clk 0:02:47]} 19. Rc1 {[%clk 0:03:01]}  Be6 {[%clk 0:02:45]} 20. Bc7 {[%clk 0:03:01]}  Qd5 {[%clk 0:02:13]} 21. Bxa5 {[%clk 0:02:51]}  Qxa2 {[%clk 0:02:13]} 22. Qxa2 {[%clk 0:02:50]}  Bxa2 {[%clk 0:02:14]} 23. Rc6 {[%clk 0:02:49]}  Bd5 {[%clk 0:02:09]} 24. Rc5 {[%clk 0:02:41]}  e6 {[%clk 0:02:07]} 25. Kf1 {[%clk 0:02:39]}  Rb8 {[%clk 0:02:02]} 26. Ne5 {[%clk 0:02:38]}  Bf8 {[%clk 0:01:55]} 27. Rc1 {[%clk 0:02:35]}  Rb7 {[%clk 0:01:52]} 28. e4 {[%clk 0:02:32]}  Bb3 {[%clk 0:01:49]} 29. Nc6 {[%clk 0:02:30]}  Ba4 {[%clk 0:01:44]} 30. Nb4 {[%clk 0:02:21]}  Ra7 {[%clk 0:01:36]} 31. d5 {[%clk 0:02:14]}  Bxb4 {[%clk 0:01:35]} 32. Bxb4 {[%clk 0:02:14]}  a5 {[%clk 0:01:36]} 33. Rc8+ {[%clk 0:02:11]}  Kg7 {[%clk 0:01:35]} 34. Bc3+ {[%clk 0:02:10]}  Kh6 {[%clk 0:01:33]} 35. d6 {[%clk 0:02:10]}  b4 {[%clk 0:01:32]} 36. Bb2 {[%clk 0:02:10]}  Bd7 {[%clk 0:01:29]} 37. Rc7 {[%clk 0:02:10]}  Rxc7 {[%clk 0:01:28]} 38. dxc7 {[%clk 0:02:10]}  a4 {[%clk 0:01:28]} 39. Bc4 {[%clk 0:02:06]}  Kg5 {[%clk 0:01:22]} 40. g3 {[%clk 0:02:05]}  f5 {[%clk 0:01:22]} 41. e5 {[%clk 0:02:03]}  Kh6 {[%clk 0:01:21]} 42. f4 {[%clk 0:02:02]}  Kg7 {[%clk 0:01:22]} 43. Ke2 {[%clk 0:02:02]}  Kf7 {[%clk 0:01:22]} 44. Kd2 {[%clk 0:02:03]}  Ke7 {[%clk 0:01:23]} 45. Bd4 {[%clk 0:02:03]}  Bc8 {[%clk 0:01:18]} 46. Bc5+ {[%clk 0:02:03]}  Kd7 {[%clk 0:01:18]} 47. Bb5+ {[%clk 0:02:03]}  Kxc7 {[%clk 0:01:17]} 48. Bxa4 {[%clk 0:02:04]}  Bb7 {[%clk 0:01:13]} 49. Bxb4 {[%clk 0:02:03]}  Bd5 {[%clk 0:01:14]} 50. Kc3 {[%clk 0:02:02]}  h5 {[%clk 0:01:14]} 51. h4 {[%clk 0:02:02]}  Kb6 {[%clk 0:01:14]} 52. Be8 {[%clk 0:02:02]} 1-0


[Site "https://www.chess.com"]

[Event "Titled Tuesday Blitz April 11 Early 2023"]
[White "Lohani, Sujana"]
[Black "Przybylski, Wojciech"]
[WhiteFideId "12311987"]
[BlackFideId "1117599"]
[WhiteElo "1718"]
[BlackElo "2222"]
[Result "0-1"]
[Round "01"]
[TimeControl "180+2"]
[Date "2023.04.11"]
[WhiteClock "0:00:08"]
[BlackClock "0:00:47"]

1. d4 {[%clk 0:02:58]}  Nf6 {[%clk 0:02:58]} 2. Nf3 {[%clk 0:02:58]}  g6 {[%clk 0:02:58]} 3. c4 {[%clk 0:02:57]}  d5 {[%clk 0:02:55]} 4. g3 {[%clk 0:02:56]}  Bg7 {[%clk 0:02:55]} 5. Bg2 {[%clk 0:02:56]}  O-O {[%clk 0:02:55]} 6. O-O {[%clk 0:02:56]}  Bf5 {[%clk 0:02:52]} 7. Nc3 {[%clk 0:02:54]}  Nc6 {[%clk 0:02:50]} 8. cxd5 {[%clk 0:02:53]}  Nb4 {[%clk 0:02:49]} 9. Nh4 {[%clk 0:02:43]}  Bg4 {[%clk 0:02:36]} 10. Qb3 {[%clk 0:02:36]}  a5 {[%clk 0:02:30]} 11. a3 {[%clk 0:02:31]}  Na6 {[%clk 0:02:29]} 12. Qxb7 {[%clk 0:02:19]}  Qd6 {[%clk 0:01:48]} 13. Nb5 {[%clk 0:01:57]}  Qd7 {[%clk 0:01:46]} 14. Nc3 {[%clk 0:01:15]}  Rfd8 {[%clk 0:01:23]} 15. e3 {[%clk 0:00:20]}  Ne8 {[%clk 0:01:09]} 16. Qc6 {[%clk 0:00:19]}  Qc8 {[%clk 0:01:09]} 17. Nf3 {[%clk 0:00:18]}  Rb8 {[%clk 0:01:04]} 18. Qc4 {[%clk 0:00:16]}  Nd6 {[%clk 0:00:58]} 19. Qd3 {[%clk 0:00:14]}  c5 {[%clk 0:00:54]} 20. dxc5 {[%clk 0:00:12]}  Nxc5 {[%clk 0:00:53]} 21. Qc2 {[%clk 0:00:10]}  Nb3 {[%clk 0:00:47]} 22. Rb1 {[%clk 0:00:09]}  Bf5 {[%clk 0:00:47]} 23. e4 {[%clk 0:00:08]}  Bxe4 {[%clk 0:00:47]} 0-1


[Site "https://www.chess.com"]

[Event "Titled Tuesday Blitz April 11 Early 2023"]
[White "Duda, Jan-Krzysztof"]
[Black "Belozerov, Andrei"]
[WhiteFideId "1170546"]
[BlackFideId "4120213"]
[WhiteElo "2790"]
[BlackElo "2373"]
[Result "1-0"]
[Round "02"]
[TimeControl "180+2"]
[Date "2023.04.11"]
[WhiteClock "0:00:28"]
[BlackClock "0:00:10"]

1. d4 {[%clk 0:03:00]}  d5 {[%clk 0:02:59]} 2. c4 {[%clk 0:03:00]}  e6 {[%clk 0:02:59]} 3. Nf3 {[%clk 0:03:01]}  Nf6 {[%clk 0:02:59]} 4. h3 {[%clk 0:03:01]}  dxc4 {[%clk 0:02:57]} 5. e3 {[%clk 0:03:01]}  c5 {[%clk 0:02:54]} 6. Bxc4 {[%clk 0:03:02]}  a6 {[%clk 0:02:55]} 7. O-O {[%clk 0:02:58]}  Nc6 {[%clk 0:02:51]} 8. Nc3 {[%clk 0:02:55]}  b5 {[%clk 0:02:51]} 9. Bd3 {[%clk 0:02:56]}  Bb7 {[%clk 0:02:50]} 10. a4 {[%clk 0:02:56]}  b4 {[%clk 0:02:49]} 11. Ne4 {[%clk 0:02:55]}  Na5 {[%clk 0:02:42]} 12. Nxc5 {[%clk 0:02:54]}  Bxc5 {[%clk 0:02:42]} 13. dxc5 {[%clk 0:02:54]}  Be4 {[%clk 0:02:42]} 14. Bxe4 {[%clk 0:02:42]}  Qxd1 {[%clk 0:02:40]} 15. Bc6+ {[%clk 0:02:14]}  Nxc6 {[%clk 0:02:14]} 16. Rxd1 {[%clk 0:02:14]}  Rd8 {[%clk 0:02:14]} 17. Bd2 {[%clk 0:02:08]}  Ke7 {[%clk 0:02:06]} 18. Rac1 {[%clk 0:01:52]}  Rd5 {[%clk 0:01:57]} 19. Nd4 {[%clk 0:01:25]}  Nxd4 {[%clk 0:01:33]} 20. exd4 {[%clk 0:01:26]}  a5 {[%clk 0:01:32]} 21. Be3 {[%clk 0:01:21]}  Rc8 {[%clk 0:01:20]} 22. Kf1 {[%clk 0:01:21]}  Kd7 {[%clk 0:01:18]} 23. Ke2 {[%clk 0:01:21]}  Kc6 {[%clk 0:01:17]} 24. Kd3 {[%clk 0:01:05]}  e5 {[%clk 0:01:14]} 25. Ke2 {[%clk 0:01:02]}  e4 {[%clk 0:00:54]} 26. g4 {[%clk 0:01:01]}  Rd7 {[%clk 0:00:51]} 27. g5 {[%clk 0:00:58]}  Nd5 {[%clk 0:00:51]} 28. Rg1 {[%clk 0:00:59]}  Re8 {[%clk 0:00:50]} 29. Rg4 {[%clk 0:00:58]}  Re6 {[%clk 0:00:49]} 30. Rh4 {[%clk 0:00:56]}  f5 {[%clk 0:00:48]} 31. gxf6 {[%clk 0:00:50]}  Nxf6 {[%clk 0:00:42]} 32. Rg1 {[%clk 0:00:48]}  Nd5 {[%clk 0:00:40]} 33. Rxh7 {[%clk 0:00:47]}  g6 {[%clk 0:00:28]} 34. Rh6 {[%clk 0:00:43]}  Rg7 {[%clk 0:00:22]} 35. h4 {[%clk 0:00:43]}  Kd7 {[%clk 0:00:21]} 36. h5 {[%clk 0:00:38]}  g5 {[%clk 0:00:19]} 37. Rxe6 {[%clk 0:00:32]}  Kxe6 {[%clk 0:00:19]} 38. Rxg5 {[%clk 0:00:33]}  Rxg5 {[%clk 0:00:14]} 39. Bxg5 {[%clk 0:00:34]}  b3 {[%clk 0:00:14]} 40. h6 {[%clk 0:00:33]}  Kf7 {[%clk 0:00:13]} 41. c6 {[%clk 0:00:33]}  Nc3+ {[%clk 0:00:11]} 42. Ke3 {[%clk 0:00:28]}  Nxa4 {[%clk 0:00:11]} 43. c7 {[%clk 0:00:29]}  Nb6 {[%clk 0:00:11]} 44. Kxe4 {[%clk 0:00:29]}  a4 {[%clk 0:00:12]} 45. Bc1 {[%clk 0:00:28]}  Kg6 {[%clk 0:00:11]} 46. d5 {[%clk 0:00:28]}  Nc8 {[%clk 0:00:10]} 47. Ke5 {[%clk 0:00:28]} 1-0


[Site "https://www.chess.com"]